bitfinex/quotes_SOLUSD_20250118
["timestamp","ask_amount","ask_price","bid_price","bid_amount"]
[1737187472186,0.03,233.09,233.08,20.0]
[1737187472875,0.03,233.09,233.08,21.31700048]
[1737187473554,0.03,233.09,233.02,24.6]
[1737187473760,0.03,233.09,233.07,21.31700048]
[1737187474062,0.03,233.09,233.05,20.0]
[1737187474260,0.03,233.09,233.08,21.31700048]
[1737187477789,0.03,233.09,233.06,4.59127975]
[1737187478186,0.03,233.09,233.08,21.31700048]
[1737187478984,0.03,233.09,233.08,25.90828023]
[1737187479173,0.03,233.09,233.08,4.59127975]
[1737187479378,0.03,233.09,233.08,25.90828023]
[1737187481166,0.03,233.09,233.08,4.59127975]
[1737187481375,0.03,233.09,233.08,25.90828023]
[1737187482386,3.8481,233.2,233.11,20.0]
[1737187482589,3.8481,233.2,233.14,21.31700048]
[1737187482886,3.8481,233.2,233.13,21.31700048]
[1737187483584,4.2881,233.2,233.14,21.31700048]
[1737187483991,25.60510048,233.2,233.12,21.31700048]
[1737187484187,21.31700048,233.15,233.07,21.31700048]
[1737187484394,21.31700048,233.13,233.06,21.31700048]
[1737187484570,12.9303,233.18,233.04,22.77664084]
[1737187484771,12.9303,233.18,233.0,22.36143302]
[1737187484772,24.4503,233.14,233.0,22.36143302]
[1737187484966,0.80438822,233.13,232.97,24.48268996]
[1737187485190,20.0,233.09,232.97,2.12125694]
[1737187485372,20.0,233.05,232.97,2.12125694]
[1737187485570,20.80493507,233.04,232.92,1.69922977]
[1737187485880,6.62879185,232.98,232.96,21.31700048]
[1737187486192,6.62879185,233.02,232.97,0.46077249]
[1737187486373,6.62879185,233.06,233.0,21.31700048]
[1737187486906,4.4503,233.07,233.0,1.69922977]
[1737187487100,21.31700048,233.06,233.0,1.69922977]
[1737187488208,4.4503,233.07,233.01,21.31700048]
[1737187488384,47.83216788,233.1,233.04,1.69922977]
[1737187489084,21.31700048,233.06,232.95,21.31700048]
[1737187489482,21.31700048,233.04,232.98,20.0]
[1737187489692,21.31700048,233.0,232.93,1.69922977]
[1737187490000,22.12161334,233.04,232.93,1.69922977]
[1737187490001,21.31700048,232.96,232.93,1.69922977]
[1737187490183,21.31700048,232.96,232.88,23.07923025]
[1737187490582,21.31700048,232.96,232.91,20.0]
[1737187490778,21.31700048,232.96,232.88,23.07923025]
[1737187491189,25.60960048,232.96,232.88,21.76222977]
[1737187491384,21.31700048,232.96,232.88,23.07923025]
[1737187491583,21.31700048,232.96,232.88,1.76222977]
[1737187491780,21.31700048,232.96,232.88,23.07923025]
[1737187492088,21.31700048,232.96,232.94,0.063]
[1737187492801,25.60970048,232.96,232.94,0.063]
[1737187494502,4.2927,232.96,232.94,0.063]
[1737187494683,21.31700048,232.95,232.94,0.063]
[1737187498498,21.31700048,232.98,232.94,1.76222977]
[1737187498702,4.1169,233.05,232.94,1.76222977]
[1737187498703,21.31700048,232.96,232.94,1.76222977]
[1737187499797,21.31700048,232.96,232.94,0.063]
[1737187501320,24.1169,232.92,232.88,0.063]
[1737187501488,21.31700048,232.9,232.88,0.063]
[1737187501901,4.1169,233.0,232.88,137.363]
[1737187502200,21.31700048,232.94,232.89,141.9]
[1737187502405,21.31700048,232.96,232.89,141.9]
[1737187503094,21.31700048,233.01,232.93,21.31700048]
[1737187503300,0.03,233.02,232.96,157.3]
[1737187503607,0.03,233.02,232.92,82.9]
[1737187503608,0.03,233.02,233.0,20.0]
[1737187503903,21.31700048,233.09,233.04,157.3]
[1737187504103,21.31700048,233.13,233.08,20.0]
[1737187504508,21.31700048,233.11,233.05,141.9]
[1737187504814,21.31700048,233.07,233.05,137.3]
[1737187505210,21.31700048,233.13,233.06,21.31700048]
[1737187505391,21.31700048,233.16,233.05,137.3]
[1737187505714,21.31700048,233.06,233.05,137.3]
[1737187506012,21.31700048,233.06,233.01,137.3]
[1737187506207,21.31700048,233.02,233.01,137.3]
[1737187507011,21.31700048,233.02,232.97,137.3]
[1737187507196,21.31700048,232.98,232.97,137.3]
[1737187507516,21.31700048,232.98,232.94,137.363]
[1737187507700,21.31700048,232.95,232.94,0.063]
[1737187508900,46.92670096,232.95,232.88,0.063]
[1737187509212,21.31700048,232.89,232.88,0.063]
[1737187509432,10.7304,232.99,232.88,0.063]
[1737187509433,21.31700048,232.93,232.88,137.363]
[1737187509603,21.31700048,232.97,232.88,158.68000048]
[1737187510232,21.31700048,232.97,232.9,21.31700048]
[1737187510823,21.31700048,233.04,232.96,158.61700048]
[1737187511030,21.31700048,233.08,233.0,21.31700048]
[1737187511607,21.31700048,233.08,233.0,158.61700048]
[1737187512615,21.31700048,233.08,233.03,20.0]
[1737187512832,21.31700048,233.12,233.03,157.3]
[1737187512996,21.31700048,233.12,233.03,178.61700048]
[1737187513517,34.43465522,233.12,233.03,191.73465522]
[1737187513905,34.43465522,233.12,233.03,274.63465522]
[1737187514405,34.43465522,233.14,233.08,20.0]
[1737187514802,0.80427285,233.25,233.13,157.3]
[1737187515004,16.9044,233.26,233.13,157.3]
[1737187515213,34.43465522,233.21,233.13,274.63465522]
[1737187515398,34.43465522,233.23,233.18,20.0]
[1737187515604,34.43465522,233.23,233.18,157.3]
[1737187515917,0.03,233.26,233.18,157.3]
[1737187516124,34.43465522,233.24,233.18,157.3]
[1737187516521,34.43465522,233.22,233.18,157.3]
[1737187517531,0.03,233.26,233.18,157.3]
[1737187517830,34.46465522,233.26,233.18,157.3]
[1737187518309,34.43465522,233.25,233.18,157.3]
[1737187518617,0.03,233.26,233.18,157.3]
[1737187518821,34.43465522,233.25,233.18,157.3]
[1737187519020,0.03,233.26,233.18,157.3]
[1737187519317,0.03,233.26,233.22,157.3]
[1737187520313,34.43465522,233.25,233.22,157.3]
[1737187520632,34.43465522,233.23,233.22,137.3]
[1737187522004,34.43465522,233.25,233.22,137.3]
[1737187522215,0.03,233.26,233.25,20.0]
[1737187522813,0.03,233.26,233.24,137.3]
[1737187523016,34.43465522,233.25,233.24,137.3]
[1737187523527,0.03,233.26,233.24,137.3]
[1737187523727,34.43465522,233.25,233.24,137.3]
[1737187524306,0.03,233.26,233.24,137.3]
[1737187527313,0.03,233.26,233.17,6.01215573]
[1737187527314,34.43465522,233.25,233.18,137.3]
[1737187527514,34.43465522,233.2,233.18,137.3]
[1737187527721,34.43465522,233.24,233.18,220.2]
[1737187528429,34.46465522,233.26,233.21,20.0]
[1737187528734,0.03,233.26,233.23,157.3]
[1737187531235,0.03,233.26,233.23,240.2]
[1737187533242,0.03,233.26,233.23,244.78]
[1737187534339,21.15877609,233.24,233.23,240.2]
[1737187534648,21.15877609,233.25,233.23,220.2]
[1737187534833,21.18877609,233.26,233.23,220.2]
[1737187535032,0.03,233.26,233.23,220.2]
[1737187535936,21.15877609,233.24,233.23,220.2]
[1737187537436,25.44617609,233.24,233.18,137.3]
[1737187537625,21.15877609,233.19,233.12,137.3]
[1737187537827,21.15877609,233.13,233.07,220.2]
[1737187538029,21.15877609,233.08,233.07,137.3]
[1737187538229,21.15877609,233.08,233.01,220.2]
[1737187538529,0.80440995,233.15,233.01,220.2]
[1737187538530,21.15877609,233.04,233.01,220.2]
[1737187538835,21.15877609,233.05,233.01,220.2]
[1737187539041,12.0232,233.13,233.01,220.2]
[1737187539042,21.15877609,233.04,233.01,220.2]
[1737187539220,12.0232,233.13,233.04,137.3]
[1737187539420,21.15877609,233.05,233.04,137.3]
[1737187542128,4.2899,233.11,233.04,137.3]
[1737187542326,21.15877609,233.05,233.04,137.3]
[1737187543124,21.15877609,233.05,233.01,137.3]
[1737187543326,21.15877609,233.02,233.01,137.3]
[1737187544544,21.15877609,233.02,233.0,43.0]
[1737187544742,4.2916,233.01,233.0,43.0]
[1737187544940,21.15877609,233.02,233.0,43.0]
[1737187545143,25.45037609,233.02,233.0,43.0]
[1737187545954,21.15877609,233.02,233.0,180.3]
[1737187546329,25.45017609,233.02,232.94,0.063]
[1737187546530,21.15877609,232.95,232.94,0.063]
[1737187547533,46.59735218,232.95,232.94,0.063]
[1737187547731,25.43857609,232.95,232.94,0.063]
[1737187549844,21.15877609,232.95,232.94,0.063]
[1737187551652,12.0232,233.0,232.94,137.363]
[1737187551833,21.15877609,233.0,232.97,20.0]
[1737187552028,4.2184,233.09,232.97,20.0]
[1737187552029,21.15877609,233.02,232.97,157.3]
[1737187553056,21.15877609,233.02,232.97,137.3]
[1737187553256,21.15877609,232.98,232.97,137.3]
[1737187555256,4.2914,233.02,232.97,137.3]
[1737187555565,21.15877609,232.98,232.97,137.3]
[1737187556957,21.15877609,233.04,232.97,137.3]
[1737187557260,21.15877609,233.06,233.0,20.0]
[1737187557437,4.2895,233.13,233.0,157.3]
[1737187557643,21.15877609,233.08,233.0,157.3]
[1737187557943,21.15877609,233.07,233.0,157.3]
[1737187558143,21.15877609,233.02,233.0,157.3]
[1737187558664,21.15877609,233.02,233.0,137.3]
[1737187559342,25.45027609,233.02,233.0,137.3]
[1737187559551,21.15877609,233.02,233.0,137.3]
[1737187560367,17.155316,233.05,233.0,137.3]
[1737187560546,21.15877609,233.04,233.0,137.3]
[1737187560748,21.15877609,233.02,233.0,137.3]
[1737187561068,21.15877609,233.02,232.97,137.3]
[1737187561249,21.15877609,232.98,232.97,137.3]
[1737187562368,4.2923,232.97,232.94,137.363]
[1737187562665,21.15877609,232.95,232.94,137.363]
[1737187562963,21.15877609,232.97,232.94,137.363]
[1737187563156,21.15877609,232.95,232.94,137.363]
[1737187563664,21.15877609,232.98,232.94,137.363]
[1737187563851,4.2905,233.07,232.97,157.3]
[1737187564049,21.15877609,233.06,232.97,240.2]
[1737187564253,4.2385,233.15,233.01,20.0]
[1737187564458,21.15877609,233.14,233.05,240.2]
[1737187564656,21.15877609,233.16,233.05,240.2]
[1737187564860,21.15877609,233.18,233.05,240.2]
[1737187565973,21.15877609,233.21,233.09,20.0]
[1737187566173,21.15877609,233.23,233.09,240.2]
[1737187566974,21.15877609,233.21,233.09,240.2]
[1737187567471,21.15877609,233.14,233.09,220.2]
[1737187567846,21.15877609,233.16,233.12,157.3]
[1737187568046,21.15877609,233.16,233.15,157.3]
[1737187568246,0.03,233.26,233.15,244.6396]
[1737187568447,0.03,233.26,233.16,12.0311]
[1737187568653,0.03,233.33,233.19,240.2]
[1737187568868,10.0,233.38,233.2,10.22058365]
[1737187569172,10.0,233.38,233.21,11.13104462]
[1737187569349,10.0,233.38,233.21,152.93026784]
[1737187569553,10.0,233.38,233.24,240.2]
[1737187569756,10.0,233.38,233.28,240.2]
[1737187569973,10.0,233.38,233.29,4.4396]
[1737187570156,10.0,233.38,233.29,224.6396]
[1737187570568,10.0,233.38,233.3,4.7]
[1737187570776,21.15877609,233.39,233.3,142.0]
[1737187570966,21.15877609,233.39,233.33,20.0]
[1737187571176,21.15877609,233.41,233.33,20.0]
[1737187571371,34.36457002,233.37,233.33,20.0]
[1737187571670,34.36457002,233.35,233.25,149.3311]
[1737187571871,34.36457002,233.33,233.26,4.76]
[1737187572077,34.36457002,233.31,233.22,137.3]
[1737187572377,34.36457002,233.27,233.18,149.3311]
[1737187572572,34.36457002,233.25,233.18,137.3]
[1737187572759,34.36457002,233.27,233.18,137.3]
[1737187572954,34.36457002,233.21,233.17,4.76]
[1737187573164,34.36457002,233.19,233.17,4.76]
[1737187573568,34.36457002,233.19,233.14,20.0]
[1737187573775,34.36457002,233.18,233.14,20.0]
[1737187573976,34.36457002,233.18,233.09,142.06]
[1737187574160,34.36457002,233.2,233.09,142.06]
[1737187574359,34.36457002,233.2,233.12,20.0]
[1737187574561,34.36457002,233.25,233.12,157.3]
[1737187574766,34.36457002,233.21,233.12,157.3]
[1737187574968,34.36457002,233.19,233.09,224.96]
[1737187575163,34.36457002,233.25,233.1,6.43104462]
[1737187575369,34.36457002,233.31,233.13,20.0]
[1737187575576,34.36457002,233.33,233.17,20.0]
[1737187575974,34.36457002,233.35,233.21,240.2]
[1737187576180,12.0884,233.41,233.21,240.2]
[1737187576360,0.03,233.37,233.25,20.0]
[1737187576560,0.03,233.37,233.29,20.0]
[1737187576861,0.03,233.37,233.29,240.2]
[1737187577775,0.03,233.37,233.29,246.63104462]
[1737187578087,0.03,233.37,233.33,240.2]
[1737187581061,0.03,233.37,233.36,20.0]
[1737187581474,0.03,233.5,233.36,240.2]
[1737187582074,0.03,233.5,233.4,20.0]
[1737187582272,0.03,233.5,233.44,20.0]
[1737187583378,0.03,233.5,233.41,224.96]
[1737187583574,34.39457002,233.5,233.41,224.96]
[1737187583973,0.03,233.5,233.41,224.96]
[1737187584480,0.03,233.5,233.44,20.0]
[1737187584887,34.39457002,233.5,233.44,20.0]
[1737187585483,0.03,233.5,233.44,20.0]
[1737187585682,34.36457002,233.48,233.44,20.0]
[1737187586179,0.03,233.5,233.44,20.0]
[1737187586380,0.03,233.5,233.44,240.2]
[1737187587163,10.0,233.56,233.44,240.2]
[1737187588168,10.0,233.56,233.45,12.4108]
[1737187588372,0.03,233.5,233.45,232.6108]
[1737187589081,0.03,233.5,233.45,82.9]
[1737187589869,0.03,233.5,233.48,20.0]
[1737187590482,0.03,233.5,233.45,82.9]
[1737187590885,0.03,233.5,233.48,20.0]
[1737187591796,34.39457002,233.5,233.37,224.92]
[1737187591996,34.36457002,233.46,233.37,224.92]
[1737187592180,34.36457002,233.46,233.37,220.2]
[1737187592387,34.36457002,233.38,233.25,149.7108]
[1737187592577,34.36457002,233.33,233.25,137.3]
[1737187592776,34.36457002,233.33,233.23,142.02]
[1737187593080,34.36457002,233.33,233.23,4.72]
[1737187593679,34.36457002,233.37,233.23,224.92]
[1737187594273,34.36457002,233.35,233.23,224.92]
[1737187594478,34.36457002,233.33,233.23,224.92]
[1737187594672,34.36457002,233.31,233.23,224.92]
[1737187594877,34.36457002,233.33,233.23,224.9]
[1737187595297,34.36457002,233.33,233.26,20.0]
[1737187595478,34.36457002,233.35,233.26,20.0]
[1737187595892,17.131971,233.35,233.26,20.0]
[1737187596198,34.36457002,233.35,233.26,20.0]
[1737187596401,34.36457002,233.33,233.26,20.0]
[1737187597083,34.36457002,233.33,233.23,224.9]
[1737187597904,34.36457002,233.33,233.26,20.0]
[1737187598091,34.36457002,233.33,233.23,224.9]
[1737187598287,34.36457002,233.33,233.26,20.0]
[1737187598678,34.36457002,233.35,233.26,240.2]
[1737187599589,51.49528402,233.37,233.26,240.2]
[1737187599783,34.36457002,233.35,233.26,240.2]
[1737187599979,34.36457002,233.33,233.26,102.9]
[1737187600402,34.36457002,233.33,233.26,102.963]
[1737187601183,34.36457002,233.29,233.26,82.963]
[1737187601382,34.36457002,233.27,233.26,0.063]
[1737187601983,34.36457002,233.29,233.26,0.063]
[1737187602183,34.36457002,233.31,233.26,0.063]
[1737187603092,34.36457002,233.29,233.26,0.063]
[1737187603490,34.36457002,233.31,233.26,0.063]
[1737187604511,34.36457002,233.29,233.26,0.063]
[1737187604804,34.36457002,233.27,233.26,0.063]
[1737187605007,20.0,233.24,233.19,0.063]
[1737187605210,34.36457002,233.2,233.19,0.063]
[1737187605685,35.16864782,233.28,233.19,0.063]
[1737187605887,34.36457002,233.21,233.19,0.063]
[1737187606088,34.36457002,233.23,233.19,0.063]
[1737187606509,34.36457002,233.21,233.19,0.063]
[1737187609310,4.2881,233.2,233.19,0.063]
[1737187611011,34.36457002,233.21,233.19,0.063]
[1737187611195,38.65247002,233.21,233.19,0.063]
[1737187611708,34.36457002,233.21,233.19,0.063]
[1737187611888,4.287,233.26,233.19,0.063]
[1737187612096,34.36457002,233.21,233.19,0.063]
[1737187612495,34.36457002,233.23,233.19,0.063]
[1737187612995,34.36457002,233.21,233.19,0.063]
[1737187613297,21.1751494,233.21,233.19,0.063]
[1737187613501,0.03,233.26,233.19,0.063]
[1737187613708,21.1751494,233.22,233.19,0.063]
[1737187614206,21.2051494,233.26,233.19,0.063]
[1737187614411,21.2051494,233.26,233.19,82.963]
[1737187615219,21.1751494,233.24,233.19,82.963]
[1737187616998,21.2051494,233.26,233.19,82.963]
[1737187618212,21.1751494,233.21,233.19,82.963]
[1737187621421,0.03,233.26,233.19,82.963]
[1737187621619,21.1751494,233.25,233.19,82.963]
[1737187622004,25.4623494,233.25,233.19,82.963]
[1737187622227,21.1751494,233.23,233.19,82.963]
[1737187622432,21.1751494,233.21,233.19,82.963]
[1737187622807,21.1751494,233.21,233.19,0.063]
[1737187623430,43.15440006,233.2,233.02,82.963]
[1737187623614,21.1751494,233.04,233.02,0.063]
[1737187625907,0.80457385,233.13,233.02,0.063]
[1737187625908,21.1751494,233.06,233.02,0.063]
[1737187626319,21.1751494,233.08,233.02,0.063]
[1737187626709,21.1751494,233.06,233.02,0.063]
[1737187627111,21.1751494,233.08,233.03,20.0]
[1737187627306,21.1751494,233.12,233.03,240.2]
[1737187627727,8.0307,233.16,233.03,240.2]
[1737187627728,21.1751494,233.1,233.03,240.2]
[1737187627923,21.1751494,233.08,233.02,0.063]
[1737187628126,21.1751494,233.04,233.02,0.063]
[1737187628925,25.4662494,233.04,233.02,0.063]
[1737187629731,21.1751494,233.04,233.02,0.063]
[1737187631019,3.7417,233.16,233.05,240.2]
[1737187631223,21.1751494,233.17,233.05,253.4556]
[1737187631530,21.1751494,233.19,233.05,253.4556]
[1737187632122,21.1751494,233.17,233.05,253.4556]
[1737187632431,21.1751494,233.15,233.05,253.4556]
[1737187632731,21.1751494,233.11,233.05,107.5]
[1737187633320,34.44361288,233.1,233.05,107.5]
[1737187634123,4.2881,233.2,233.05,244.8]
[1737187634327,34.44361288,233.17,233.05,244.8]
[1737187634526,34.44361288,233.21,233.05,244.8]
[1737187634834,34.44361288,233.23,233.05,244.8]
[1737187635040,34.44361288,233.23,233.09,20.0]
[1737187636027,34.44361288,233.21,233.09,240.2]
[1737187637415,4.2876,233.23,233.09,240.2]
[1737187637613,34.44361288,233.22,233.09,240.2]
[1737187637817,34.44361288,233.14,233.09,82.9]
[1737187638012,34.44361288,233.12,233.09,82.9]
[1737187638225,34.44361288,233.1,233.05,0.063]
[1737187638434,34.44361288,233.07,233.05,0.063]
[1737187639522,38.73421288,233.07,233.05,0.063]
[1737187640045,0.8045926,233.06,233.05,0.063]
[1737187641157,3.17966394,233.06,233.05,0.063]
[1737187641319,37.62327682,233.06,233.02,0.063]
[1737187641524,34.44361288,233.03,233.02,0.063]
[1737187642944,4.2907,233.06,233.02,0.063]
[1737187643147,34.44361288,233.03,233.02,0.063]
[1737187645637,6.9452835,233.03,232.95,0.063]
[1737187645859,54.44361288,233.01,233.0,0.0001]
[1737187646528,58.73521288,233.01,233.0,0.0001]
[1737187647355,61.91439638,233.01,233.0,0.0001]
[1737187648424,128.54540926,233.01,232.94,0.063]
[1737187648632,20.0,232.92,232.88,0.063]
[1737187648935,54.44361288,232.89,232.88,0.063]
[1737187649129,55.24907784,232.89,232.88,0.063]
[1737187649835,58.42826134,232.89,232.88,0.063]
[1737187650033,62.72206134,232.89,232.88,0.063]
[1737187650725,37.62279638,232.89,232.88,0.063]
[1737187651132,3.1791835,232.89,232.88,0.063]
[1737187651359,37.62279638,232.89,232.88,0.063]
[1737187652823,35.24900296,232.89,232.88,0.063]
[1737187654934,4.294,232.88,232.83,0.063]
[1737187655132,34.44361288,232.84,232.83,0.063]
[1737187656135,51.61452588,232.92,232.83,137.363]
[1737187656136,34.44361288,232.88,232.83,137.363]
[1737187657539,34.44361288,232.9,232.86,157.3]
[1737187658052,34.44361288,232.92,232.86,157.3]
[1737187658731,34.44361288,232.93,232.86,157.3]
[1737187658938,8.77489634,232.98,232.86,157.3]
[1737187658939,34.44361288,232.89,232.86,137.3]
[1737187659158,34.44361288,232.87,232.83,137.363]
[1737187659359,34.44361288,232.89,232.83,137.363]
[1737187659537,34.44361288,232.89,232.86,0.063]
[1737187659737,34.44361288,232.87,232.86,0.063]
[1737187660140,38.73781288,232.87,232.86,0.063]
[1737187660951,39.54329468,232.87,232.86,0.063]
[1737187661855,53.80299468,232.87,232.83,0.063]
[1737187662040,68.88722576,232.84,232.83,0.063]
[1737187662240,39.54398691,232.84,232.83,0.063]
[1737187663050,38.73831288,232.84,232.83,0.063]
[1737187663562,39.54381989,232.84,232.83,0.063]
[1737187664248,34.44361288,232.84,232.83,0.063]
[1737187664451,34.44361288,232.87,232.83,0.063]
[1737187664760,4.2937,232.9,232.83,0.063]
[1737187664761,34.44361288,232.85,232.83,0.063]
[1737187665548,34.44361288,232.87,232.83,0.063]
[1737187665748,34.44361288,232.89,232.83,0.063]
[1737187666187,34.44361288,232.87,232.83,0.063]
[1737187666361,34.44361288,232.85,232.83,0.063]
[1737187668865,34.44361288,232.87,232.83,0.063]
[1737187669584,34.44361288,232.85,232.83,0.063]
[1737187671895,38.73821288,232.85,232.83,0.063]
[1737187672186,0.80544721,232.84,232.83,0.063]
[1737187672758,5.10014721,232.84,232.83,0.063]
[1737187672978,20.0,232.81,232.78,0.063]
[1737187673189,34.44361288,232.79,232.78,0.0001]
[1737187673685,20.0,232.76,232.7,0.063]
[1737187673984,20.0,232.67,232.54,13.3164]
[1737187674286,34.44361288,232.65,232.49,82.9]
[1737187674863,34.44361288,232.65,232.64,0.0001]
[1737187675062,20.0,232.62,232.49,82.9]
[1737187675264,34.44361288,232.6,232.49,82.9]
[1737187675486,34.44361288,232.6,232.48,13.3164]
[1737187675660,34.44361288,232.6,232.47,4.6]
[1737187675865,34.44361288,232.6,232.43,4.3023]
[1737187676079,20.0,232.57,232.43,4.6]
[1737187676285,34.44361288,232.48,232.42,59.6764]
[1737187676478,34.44361288,232.48,232.42,46.36]
[1737187676667,34.44361288,232.5,232.42,50.6624]
[1737187676867,34.44361288,232.48,232.42,46.36]
[1737187677367,34.44361288,232.43,232.35,13.3164]
[1737187677563,18.5097,232.55,232.32,4.6]
[1737187677564,34.44361288,232.41,232.32,4.6]
[1737187677780,34.44361288,232.41,232.28,141.6051]
[1737187677980,34.44361288,232.41,232.3,4.6]
[1737187678383,34.44361288,232.39,232.3,4.6]
[1737187678771,34.44361288,232.37,232.3,4.6]
[1737187679182,34.44361288,232.37,232.27,17.6216]
[1737187679387,34.44361288,232.35,232.27,4.3052]
[1737187679892,34.44361288,232.38,232.27,24.3052]
[1737187680075,34.44361288,232.38,232.27,4.3052]
[1737187680475,4.3027,232.41,232.27,4.3052]
[1737187680476,34.44361288,232.4,232.27,15.0685]
[1737187680681,34.44361288,232.38,232.27,235.2685]
[1737187680886,34.44361288,232.34,232.27,224.5052]
[1737187681191,34.44361288,232.3,232.27,137.3]
[1737187681377,34.44361288,232.28,232.27,137.3]
[1737187681571,34.44361288,232.28,232.2,141.6065]
[1737187681777,34.44361288,232.23,232.2,141.6065]
[1737187681983,34.44361288,232.25,232.19,137.3]
[1737187682190,34.44361288,232.23,232.19,137.3]
[1737187682983,17.214406,232.3,232.19,141.6067]
[1737187683179,34.44361288,232.28,232.19,141.6067]
[1737187683479,68.59541288,232.44,232.19,137.3]
[1737187683480,34.44361288,232.2,232.19,137.3]
[1737187683779,34.44361288,232.2,232.18,0.03]
[1737187684180,0.80770884,232.19,232.18,0.03]
[1737187684691,34.44361288,232.2,232.18,0.03]
[1737187684996,0.8075342,232.25,232.18,137.33]
[1737187685181,34.44361288,232.24,232.18,141.6369]
[1737187685796,34.44361288,232.2,232.18,0.03]
[1737187686005,34.44361288,232.2,232.18,4.3369]
[1737187686206,5.1121342,232.31,232.18,141.6369]
[1737187686372,34.44361288,232.25,232.18,141.6369]
[1737187686569,34.44361288,232.27,232.21,157.3]
[1737187686792,34.44361288,232.33,232.21,157.3]
[1737187686997,34.44361288,232.35,232.25,20.0]
[1737187687183,34.44361288,232.37,232.25,20.0]
[1737187687381,34.44361288,232.35,232.25,157.3]
[1737187687586,34.44361288,232.29,232.25,137.3]
[1737187687985,34.44361288,232.29,232.22,137.3]
[1737187688189,34.44361288,232.27,232.22,137.3]
[1737187688690,34.44361288,232.29,232.22,137.3]
[1737187689393,34.44361288,232.27,232.22,137.3]
[1737187690679,17.207829,232.38,232.25,20.0]
[1737187690883,34.44361288,232.35,232.25,157.3]
[1737187691078,34.44361288,232.37,232.25,240.2]
[1737187691291,34.44361288,232.37,232.29,20.0]
[1737187691614,0.80691636,232.54,232.33,240.2]
[1737187691779,12.4319,232.64,232.37,240.2]
[1737187691780,34.44361288,232.57,232.37,240.2]
[1737187692112,34.44361288,232.61,232.38,17.44564527]
[1737187692328,34.44361288,232.57,232.42,223.699]
[1737187692477,34.44361288,232.68,232.42,223.699]
[1737187692478,34.44361288,232.53,232.42,220.2]
[1737187692984,34.44361288,232.53,232.45,20.0]
[1737187693387,34.44361288,232.51,232.46,141.6018]
[1737187693792,34.44361288,232.53,232.46,137.3]
[1737187694099,34.44361288,232.49,232.46,137.3]
[1737187694601,34.44361288,232.51,232.46,137.3]
[1737187694805,34.44361288,232.49,232.46,137.3]
[1737187694980,34.44361288,232.51,232.46,137.3]
[1737187695386,34.44361288,232.55,232.47,141.6016]
[1737187695587,34.44361288,232.57,232.5,157.3]
[1737187695797,34.44361288,232.59,232.5,157.3]
[1737187696410,5.10418354,232.67,232.5,157.3]
[1737187696598,34.44361288,232.56,232.5,157.3]
[1737187697005,34.44361288,232.56,232.5,137.3]
[1737187697187,34.44361288,232.52,232.47,137.3]
[1737187697381,34.44361288,232.55,232.47,220.2]
[1737187697686,34.44361288,232.53,232.48,4.3014]
[1737187697893,34.44361288,232.51,232.47,224.5015]
[1737187698093,34.44361288,232.53,232.47,224.5015]
[1737187698294,34.44361288,232.55,232.5,157.3]
[1737187698494,34.44361288,232.52,232.45,4.3018]
[1737187698700,34.44361288,232.48,232.43,137.3]
[1737187699205,34.44361288,232.44,232.43,137.3]
[1737187699386,4.3003,232.54,232.38,137.3]
[1737187699594,34.44361288,232.46,232.38,141.6032]
[1737187699893,34.44361288,232.46,232.38,224.5032]
[1737187700094,34.44361288,232.44,232.38,224.5032]